[Event "AUT-ch Open 2020"]
[Site "Graz"]
[Date "2020.02.19"]
[Round "7.19"]
[White "Golecki, Jan"]
[Black "Breneis, Lukas"]
[Result "0-1"]
[ECO "C40"]
[WhiteElo "2112"]
[BlackElo "2250"]
[Annotator "NA"]
[PlyCount "64"]
[EventDate "2020.02.14"]
[EventType "swiss"]
[EventCountry "AUT"]
[SourceTitle "playchess.com"]
[Source "ChessBase"]
[SourceQuality "1"]
[TimeControl "40/5400+30:1800+30"]

1. e4 {[%emt 0:00:00]} e5 {[%emt 0:00:00]} 2. Nf3 {[%emt 0:00:00]} Qe7 {[%emt 0:00:49]} 3. Bc4 {[%emt 0:03:14]} d6 {[%emt 0:00:44]} 4. d4 {[%emt 0:02:06]} c6 {[%emt 0:04:27]} 5. b3 {[%emt 0:05:08]} Bg4 {[%emt 0:19:06]} 6. dxe5 {[%emt 0:17:12]} dxe5 {[%emt 0:01:51]} 7. h3 {[%emt 0:01:26]} Bh5 {[%emt 0:01:25]} 8. Qe2 {[%emt 0:10:50]} Qc7 {[%emt 0:04:50]} 9. Bb2 {[%emt 0:00:29]} Nd7 {[%emt 0:03:01]} 10. g4 {[%emt 0:00:09]} Bg6 {[%emt 0:00:15]} 11. Nh4 {[%emt 0:00:02]} Ngf6 {[%emt 0:03:10]} 12. Nd2 {[%emt 0:00:41]} Nc5 {[%emt 0:12:39]} 13. O-O-O {[%emt 0:02:51]} b5 {[%emt 0:05:22]} 14. f4 {[%emt 0:13:09]} Nfd7 {[%emt 0:08:12]} 15. f5 {[%emt 0:03:19]} bxc4 {[%emt 0:00:05]} 16. Nxc4 {[%emt 0:00:04]} a5 {[%emt 0:05:39]} 17. a4 {[%emt 0:02:11]} Be7 {[%emt 0:02:29]} 18. Nf3 {[%emt 0:02:03]} O-O {[%emt 0:00:58]} 19. Nfxe5 {[%emt 0:04:05]} Nxe5 {[%emt 0:07:15]} 20. Bxe5 {[%emt 0:03:08]} Qb7 {[%emt 0:00:03]} 21. Bc3 {[%emt 0:08:43]} Nxb3+ {[%emt 0:06:03]} 22. cxb3 {[%emt 0:00:15]} Qxb3 {[%emt 0:00:05]} 23. Bb2 {[%emt 0:00:40]} Rab8 {[%emt 0:03:56]} 24. Qc2 {[%emt 0:00:22]} Qa2 {[%emt 0:00:22]} 25. Bd4 {[%emt 0:05:04]} Bg5+ {[%emt 0:02:50]} 26. Rd2 {[%emt 0:00:01]} Rb1+ {[%emt 0:01:21]} 27. Qxb1 {[%emt 0:00:01]} Qxc4+ {[%emt 0:00:11]} 28. Qc2 {[%emt 0:01:17]} Qxd4 {[%emt 0:00:45]} 29. Rhh2 {[%emt 0:01:25]} Rd8 {[%emt 0:03:02]} 30. Qa2 {[%emt 0:03:17]} Qg1+ {[%emt 0:01:08]} 31. Kc2 {[%emt 0:00:53]} Bxd2 {[%emt 0:00:07]} 32. fxg6 {[%emt 0:01:17]} Qc1+ {[%emt 0:00:08]} 0-1

[Event "AUT-ch Open 2020"]
[Site "Graz"]
[Date "2020.02.19"]
[Round "7.20"]
[White "Kosakowski, Jakub"]
[Black "Stukan, Martin"]
[Result "1/2-1/2"]
[ECO "B92"]
[WhiteElo "2413"]
[BlackElo "2292"]
[Annotator "NA"]
[PlyCount "92"]
[EventDate "2020.02.14"]
[EventType "swiss"]
[EventCountry "AUT"]
[SourceTitle "playchess.com"]
[Source "ChessBase"]
[SourceQuality "1"]
[TimeControl "40/5400+30:1800+30"]

1. e4 {[%emt 0:00:00]} c5 {[%emt 0:00:00]} 2. Nf3 {[%emt 0:00:00]} d6 {[%emt 0:00:00]} 3. d4 {[%emt 0:01:38]} cxd4 {[%emt 0:00:00]} 4. Nxd4 {[%emt 0:00:10]} Nf6 {[%emt 0:00:00]} 5. Nc3 {[%emt 0:00:13]} a6 {[%emt 0:00:00]} 6. Be2 {[%emt 0:01:16]} e5 {[%emt 0:00:00]} 7. Nf3 {[%emt 0:02:07]} Be7 {[%emt 0:00:22]} 8. Bg5 {[%emt 0:00:14]} Nbd7 {[%emt 0:00:38]} 9. a4 {[%emt 0:00:25]} h6 {[%emt 0:01:31]} 10. Bxf6 {[%emt 0:04:23]} Nxf6 {[%emt 0:00:26]} 11. Nd2 {[%emt 0:00:20]} Be6 {[%emt 0:07:57]} 12. Nc4 {[%emt 0:09:00]} Rc8 {[%emt 0:20:28]} 13. Ne3 {[%emt 0:01:46]} Qb6 {[%emt 0:05:34]} 14. Rb1 {[%emt 0:01:02]} Qb4 {[%emt 0:04:09]} 15. Bf3 {[%emt 0:01:04]} O-O {[%emt 0:15:41]} 16. O-O {[%emt 0:00:21]} Bd8 {[%emt 0:00:38]} 17. h4 {[%emt 0:09:10]} Bb6 {[%emt 0:03:12]} 18. Re1 {[%emt 0:02:05]} Bd4 {[%emt 0:08:35]} 19. g4 {[%emt 0:06:41]} Bxc3 {[%emt 0:06:47]} 20. bxc3 {[%emt 0:00:07]} Qxc3 {[%emt 0:00:02]} 21. Qxd6 {[%emt 0:01:13]} Rfd8 {[%emt 0:07:47]} 22. Qb6 {[%emt 0:01:08]} Rd7 {[%emt 0:00:52]} 23. Red1 {[%emt 0:03:53]} Rc6 {[%emt 0:02:41]} 24. Qa7 {[%emt 0:00:15]} Nxg4 {[%emt 0:02:36]} 25. Rxd7 {[%emt 0:18:02]} Bxd7 {[%emt 0:00:07]} 26. Bxg4 {[%emt 0:00:37]} Bxg4 {[%emt 0:01:46]} 27. Qxb7 {[%emt 0:02:24]} Rg6 {[%emt 0:01:18]} 28. Qb4 {[%emt 0:02:07]} Qc6 {[%emt 0:04:46]} 29. Qb8+ {[%emt 0:03:33]} Kh7 {[%emt 0:00:23]} 30. Qxe5 {[%emt 0:00:50]} Bf3+ {[%emt 0:00:30]} 31. Kh2 {[%emt 0:03:43]} Bxe4 {[%emt 0:00:22]} 32. Rb4 {[%emt 0:01:30]} Bh1 {[%emt 0:04:23]} 33. Qf5 {[%emt 0:02:30]} Qd6+ {[%emt 0:00:23]} 34. Rf4 {[%emt 0:00:02]} Bf3 {[%emt 0:00:17]} 35. c4 {[%emt 0:07:17]} Qb8 {[%emt 0:00:02]} 36. h5 {[%emt 0:16:13]} Bxh5 {[%emt 0:00:04]} 37. Nd5 {[%emt 0:00:09]} Bg4 {[%emt 0:00:23]} 38. Qxf7 {[%emt 0:00:46]} Be6 {[%emt 0:03:26]} 39. Qc7 {[%emt 0:00:05]} Qb2 {[%emt 0:00:12]} 40. Rf3 {[%emt 0:01:07]} Qc1 {[%emt 0:00:45]} 41. Nf6+ {[%emt 0:08:04]} Rxf6 {[%emt 0:00:00]} 42. Rxf6 {[%emt 0:00:03]} Bd5 {[%emt 0:00:24]} 43. f3 {[%emt 0:00:45]} Qb2+ {[%emt 0:06:55]} 44. Kg3 {[%emt 0:00:29]} Qxf6 {[%emt 0:00:18]} 45. cxd5 {[%emt 0:00:06]} Qg5+ {[%emt 0:00:02]} 46. Kf2 {[%emt 0:00:12]} Qd2+ {[%emt 0:02:09]} 1/2-1/2

[Event "AUT-ch Open 2020"]
[Site "Graz"]
[Date "2020.02.19"]
[Round "7.20"]
[White "Zoernpfenning, Siegfried"]
[Black "Meurs, Tom"]
[Result "1-0"]
[ECO "B13"]
[WhiteElo "2094"]
[BlackElo "2249"]
[Annotator "NA"]
[PlyCount "79"]
[EventDate "2020.02.14"]
[EventType "swiss"]
[EventCountry "AUT"]
[SourceTitle "playchess.com"]
[Source "ChessBase"]
[SourceQuality "1"]
[TimeControl "40/5400+30:1800+30"]

1. d4 {[%emt 0:00:00]} d5 {[%emt 0:00:00]} 2. Bf4 {[%emt 0:00:00]} c5 {[%emt 0:00:29]} 3. e3 {[%emt 0:00:01]} cxd4 {[%emt 0:00:17]} 4. exd4 {[%emt 0:00:12]} Nc6 {[%emt 0:00:05]} 5. c3 {[%emt 0:01:55]} f6 {[%emt 0:00:13]} 6. Nf3 {[%emt 0:04:23]} g5 {[%emt 0:00:32]} 7. Bg3 {[%emt 0:04:28]} Bf5 {[%emt 0:00:51]} 8. Bd3 {[%emt 0:00:23]} Qd7 {[%emt 0:03:16]} 9. Bxf5 {[%emt 0:05:17]} Qxf5 {[%emt 0:00:16]} 10. Qe2 {[%emt 0:00:06]} h5 {[%emt 0:05:55]} 11. h4 {[%emt 0:04:39]} g4 {[%emt 0:03:55]} 12. Nh2 {[%emt 0:00:13]} Nh6 {[%emt 0:02:25]} 13. Nd2 {[%emt 0:05:29]} Bg7 {[%emt 0:08:40]} 14. f3 {[%emt 0:04:23]} gxf3 {[%emt 0:03:52]} 15. gxf3 {[%emt 0:05:15]} e5 {[%emt 0:13:16]} 16. Nb3 {[%emt 0:00:34]} a6 {[%emt 0:29:40]} 17. Nf1 {[%emt 0:03:20]} O-O {[%emt 0:02:21]} 18. Ne3 {[%emt 0:01:06]} Qg6 {[%emt 0:03:54]} 19. Kf2 {[%emt 0:07:52]} Rae8 {[%emt 0:02:47]} 20. Qc2 {[%emt 0:03:13]} f5 {[%emt 0:07:14]} 21. dxe5 {[%emt 0:02:25]} Qe6 {[%emt 0:06:36]} 22. Nc5 {[%emt 0:06:06]} Qe7 {[%emt 0:00:11]} 23. Nd3 {[%emt 0:00:08]} f4 {[%emt 0:02:21]} 24. Bxf4 {[%emt 0:00:14]} Rxf4 {[%emt 0:01:49]} 25. Nxf4 {[%emt 0:00:40]} Nxe5 {[%emt 0:00:30]} 26. Rae1 {[%emt 0:03:21]} Qf7 {[%emt 0:00:55]} 27. Nexd5 {[%emt 0:00:23]} Rf8 {[%emt 0:00:35]} 28. Rhg1 {[%emt 0:03:56]} Nhg4+ {[%emt 0:00:34]} 29. fxg4 {[%emt 0:00:23]} Qxd5 {[%emt 0:00:06]} 30. Re4 {[%emt 0:05:36]} Nd3+ {[%emt 0:00:16]} 31. Ke3 {[%emt 0:00:18]} Nxf4 {[%emt 0:00:32]} 32. gxh5 {[%emt 0:00:30]} Qc5+ {[%emt 0:00:12]} 33. Rd4 {[%emt 0:00:18]} Ne6 {[%emt 0:01:21]} 34. h6 {[%emt 0:00:35]} Re8 {[%emt 0:00:32]} 35. Qg6 {[%emt 0:00:12]} Qe5+ {[%emt 0:00:30]} 36. Re4 {[%emt 0:00:16]} Qc5+ {[%emt 0:00:03]} 37. Kd3 {[%emt 0:00:59]} Nf4+ {[%emt 0:00:56]} 38. Rxf4 {[%emt 0:00:10]} Qb5+ {[%emt 0:00:28]} 39. Rc4 {[%emt 0:01:21]} Qd5+ {[%emt 0:00:21]} 40. Kc2 {[%emt 0:00:44]} 1-0

[Event "AUT-ch Open 2020"]
[Site "Graz"]
[Date "2020.02.19"]
[Round "7.21"]
[White "Karthikeyan, P.."]
[Black "Caglar, Sila"]
[Result "1-0"]
[ECO "B24"]
[WhiteElo "2406"]
[BlackElo "2268"]
[Annotator "ChessBase"]
[PlyCount "106"]
[EventDate "2020.02.14"]
[EventType "swiss"]
[EventCountry "AUT"]
[SourceTitle "playchess.com"]
[Source "ChessBase"]
[SourceQuality "1"]
[TimeControl "40/5400+30:1800+30"]

1. e4 {[%emt 0:03:23]} c5 {[%emt 0:03:24]} 2. Nc3 {[%emt 0:00:04]} Nc6 {[%emt 0:01:05]} 3. Bb5 {[%emt 0:00:05]} Nd4 {[%emt 0:00:52]} 4. Nf3 {[%emt 0:00:04]} a6 {[%emt 0:08:58]} 5. Bd3 {[%emt 0:00:46]} g6 {[%emt 0:10:41]} 6. Nxd4 {[%emt 0:01:03]} cxd4 {[%emt 0:00:07]} 7. Ne2 {[%emt 0:00:07]} Bg7 {[%emt 0:00:07]} 8. c3 {[%emt 0:00:02]} dxc3 {[%emt 0:01:05]} 9. dxc3 {[%emt 0:00:04]} Nf6 {[%emt 0:02:49]} 10. O-O {[%emt 0:00:46]} O-O {[%emt 0:00:05]} 11. Nd4 {[%emt 0:00:30]} d5 {[%emt 0:02:47]} 12. e5 {[%emt 0:01:44]} Ne4 {[%emt 0:01:12]} 13. f3 {[%emt 0:00:11]} Nc5 {[%emt 0:00:25]} 14. Bf4 {[%emt 0:00:03]} Qb6 {[%emt 0:02:08]} 15. Rf2 {[%emt 0:00:36]} Ne6 {[%emt 0:01:37]} 16. Nxe6 {[%emt 0:01:26]} Bxe6 {[%emt 0:00:44]} 17. Qd2 {[%emt 0:00:59]} d4 {[%emt 0:08:33]} 18. c4 {[%emt 0:00:15]} Rac8 {[%emt 0:03:29]} 19. b3 {[%emt 0:00:11]} a5 {[%emt 0:02:06]} 20. Bh6 {[%emt 0:01:18]} Bxe5 {[%emt 0:08:24]} 21. Bxf8 {[%emt 0:01:18]} Rxf8 {[%emt 0:00:24]} 22. Re1 {[%emt 0:01:59]} Bd6 {[%emt 0:05:52]} 23. Qh6 {[%emt 0:01:54]} Bd7 {[%emt 0:09:24]} 24. f4 {[%emt 0:04:36]} f5 {[%emt 0:01:23]} 25. h4 {[%emt 0:05:14]} Qb4 {[%emt 0:03:29]} 26. Ree2 {[%emt 0:09:22]} Qc3 {[%emt 0:04:30]} 27. c5 {[%emt 0:03:59]} Bxc5 {[%emt 0:02:23]} 28. Rf3 {[%emt 0:02:55]} e6 {[%emt 0:02:41]} 29. h5 {[%emt 0:02:46]} Rf6 {[%emt 0:01:19]} 30. Qg5 {[%emt 0:00:24]} Kg7 {[%emt 0:00:49]} 31. Kh2 {[%emt 0:06:01]} Qb4 {[%emt 0:02:32]} 32. h6+ {[%emt 0:00:35]} Kf7 {[%emt 0:00:17]} 33. g4 {[%emt 0:03:07]} Bb5 {[%emt 0:01:33]} 34. gxf5 {[%emt 0:04:17]} exf5 {[%emt 0:00:09]} 35. Qg2 {[%emt 0:02:42]} Bc6 {[%emt 0:04:48]} 36. Qg3 {[%emt 0:04:20]} Bd6 {[%emt 0:03:40]} 37. Bc4+ {[%emt 0:07:35]} Kf8 {[%emt 0:00:04]} 38. Rf1 {[%emt 0:00:14]} b5 {[%emt 0:00:37]} 39. Bd3 {[%emt 0:02:22]} Qc5 {[%emt 0:01:22]} 40. Qh4 {[%emt 0:03:19]} g5 {[%emt 0:01:32]} 41. Qxg5 {[%emt 0:31:28]} Rg6 {[%emt 0:30:06]} 42. Qxf5+ {[%emt 0:02:58]} Qxf5 {[%emt 0:00:00]} 43. Bxf5 {[%emt 0:00:00]} Rf6 {[%emt 0:00:00]} 44. Be4 {[%emt 0:00:00]} Re6 {[%emt 0:00:00]} 45. Bd3 {[%emt 0:00:00]} Rxh6+ {[%emt 0:00:00]} 46. Kg3 {[%emt 0:00:00]} a4 {[%emt 0:00:00]} 47. Kg4 {[%emt 0:00:00]} Bd5 {[%emt 0:00:00]} 48. Bxb5 {[%emt 0:00:00]} axb3 {[%emt 0:00:00]} 49. axb3 {[%emt 0:00:00]} Rg6+ {[%emt 0:00:00]} 50. Kf5 {[%emt 0:00:00]} Bxb3 {[%emt 0:00:00]} 51. Ra1 {[%emt 0:00:00]} Bf7 {[%emt 0:00:00]} 52. Ra7 {[%emt 0:04:17]} Rg3 {[%emt 0:04:10]} 53. Rd2 {[%emt 0:06:59]} Rb3 {[%emt 0:01:45]} 1-0

[Event "AUT-ch Open 2020"]
[Site "Graz"]
[Date "2020.02.19"]
[Round "7.21"]
[White "Frosch, Erich"]
[Black "Wallner, Dieter"]
[Result "1-0"]
[ECO "A06"]
[WhiteElo "2210"]
[BlackElo "2116"]
[Annotator "NA"]
[PlyCount "57"]
[EventDate "2020.02.14"]
[EventType "swiss"]
[EventCountry "AUT"]
[SourceTitle "playchess.com"]
[Source "ChessBase"]
[SourceQuality "1"]
[TimeControl "40/5400+30:1800+30"]

1. Nf3 {[%emt 0:00:00]} d5 {[%emt 0:00:00]} 2. b3 {[%emt 0:00:00]} Bf5 {[%emt 0:00:51]} 3. Bb2 {[%emt 0:00:00]} Nf6 {[%emt 0:00:49]} 4. e3 {[%emt 0:00:00]} e6 {[%emt 0:00:19]} 5. Nc3 {[%emt 0:00:00]} Be7 {[%emt 0:05:28]} 6. Ne2 {[%emt 0:00:48]} h6 {[%emt 0:05:14]} 7. Ng3 {[%emt 0:02:12]} Bh7 {[%emt 0:00:24]} 8. Be2 {[%emt 0:00:49]} Nbd7 {[%emt 0:00:31]} 9. O-O {[%emt 0:00:10]} O-O {[%emt 0:00:39]} 10. d3 {[%emt 0:00:26]} c6 {[%emt 0:04:56]} 11. Qd2 {[%emt 0:01:08]} a5 {[%emt 0:09:31]} 12. a3 {[%emt 0:00:16]} Qc7 {[%emt 0:02:39]} 13. Rac1 {[%emt 0:00:08]} b5 {[%emt 0:01:24]} 14. Nd4 {[%emt 0:01:31]} Rfe8 {[%emt 0:13:54]} 15. f4 {[%emt 0:01:37]} Bd6 {[%emt 0:05:45]} 16. c4 {[%emt 0:04:05]} bxc4 {[%emt 0:00:15]} 17. bxc4 {[%emt 0:00:30]} Qb7 {[%emt 0:06:42]} 18. cxd5 {[%emt 0:04:22]} cxd5 {[%emt 0:01:14]} 19. Rb1 {[%emt 0:03:11]} Reb8 {[%emt 0:02:13]} 20. Rfc1 {[%emt 0:04:29]} Nc5 {[%emt 0:05:57]} 21. Qd1 {[%emt 0:06:00]} Qd7 {[%emt 0:07:34]} 22. Nf3 {[%emt 0:07:21]} Ne8 {[%emt 0:05:42]} 23. Bd4 {[%emt 0:02:16]} Rxb1 {[%emt 0:00:47]} 24. Rxb1 {[%emt 0:00:08]} a4 {[%emt 0:00:48]} 25. Ne5 {[%emt 0:03:29]} Qe7 {[%emt 0:01:26]} 26. Bh5 {[%emt 0:04:11]} Bxe5 {[%emt 0:07:35]} 27. fxe5 {[%emt 0:04:36]} Nxd3 {[%emt 0:00:08]} 28. Be2 {[%emt 0:01:12]} Qxa3 {[%emt 0:00:22]} 29. Ra1 {[%emt 0:00:16]} 1-0

[Event "AUT-ch Open 2020"]
[Site "Graz"]
[Date "2020.02.19"]
[Round "7.22"]
[White "Novikov, Stanislav"]
[Black "Ninov, Dayan"]
[Result "1-0"]
[ECO "B10"]
[WhiteElo "2531"]
[BlackElo "2242"]
[Annotator "ChessBase"]
[PlyCount "97"]
[EventDate "2020.02.14"]
[EventType "swiss"]
[EventCountry "AUT"]
[SourceTitle "playchess.com"]
[Source "ChessBase"]
[SourceQuality "1"]
[TimeControl "40/5400+30:1800+30"]

1. c4 {[%emt 0:00:00]} c6 {[%emt 0:07:23]} 2. e4 {[%emt 0:01:21]} d5 {[%emt 0:00:53]} 3. cxd5 {[%emt 0:00:56]} cxd5 {[%emt 0:00:07]} 4. exd5 {[%emt 0:00:05]} Nf6 {[%emt 0:00:10]} 5. Nc3 {[%emt 0:07:23]} Nxd5 {[%emt 0:00:54]} 6. d4 {[%emt 0:00:19]} e6 {[%emt 0:00:56]} 7. Nf3 {[%emt 0:05:10]} Be7 {[%emt 0:00:10]} 8. Bd3 {[%emt 0:00:22]} Nxc3 {[%emt 0:02:48]} 9. bxc3 {[%emt 0:01:08]} Qc7 {[%emt 0:00:04]} 10. O-O {[%emt 0:02:49]} Nd7 {[%emt 0:02:13]} 11. d5 {[%emt 0:21:41]} e5 {[%emt 0:19:38]} 12. Bg5 {[%emt 0:14:59]} f6 {[%emt 0:03:40]} 13. Be3 {[%emt 0:04:02]} Nc5 {[%emt 0:05:28]} 14. Bc2 {[%emt 0:07:11]} O-O {[%emt 0:01:24]} 15. Nd2 {[%emt 0:11:24]} b5 {[%emt 0:22:40]} 16. c4 {[%emt 0:03:04]} Bd7 {[%emt 0:03:21]} 17. Qb1 {[%emt 0:08:59]} f5 {[%emt 0:01:11]} 18. cxb5 {[%emt 0:00:11]} Qb7 {[%emt 0:06:25]} 19. d6 {[%emt 0:02:24]} Bxd6 {[%emt 0:01:10]} 20. Nc4 {[%emt 0:00:10]} Be7 {[%emt 0:02:40]} 21. Nxe5 {[%emt 0:00:09]} Bxb5 {[%emt 0:05:22]} 22. Bxc5 {[%emt 0:03:07]} Bxc5 {[%emt 0:00:27]} 23. Qb3+ {[%emt 0:00:57]} Kh8 {[%emt 0:00:10]} 24. Rab1 {[%emt 0:00:28]} Rab8 {[%emt 0:09:25]} 25. a4 {[%emt 0:01:41]} Qc7 {[%emt 0:02:50]} 26. Ng6+ {[%emt 0:00:41]} hxg6 {[%emt 0:00:01]} 27. Qh3+ {[%emt 0:00:04]} Kg8 {[%emt 0:00:02]} 28. Bb3+ {[%emt 0:00:08]} Rf7 {[%emt 0:00:14]} 29. Bxf7+ {[%emt 0:01:50]} Qxf7 {[%emt 0:01:30]} 30. axb5 {[%emt 0:00:20]} Qc4 {[%emt 0:00:52]} 31. Qg3 {[%emt 0:01:13]} Rb6 {[%emt 0:00:33]} 32. Rfd1 {[%emt 0:00:53]} Qe2 {[%emt 0:00:43]} 33. Re1 {[%emt 0:00:34]} Qc4 {[%emt 0:00:34]} 34. h4 {[%emt 0:00:35]} Kh7 {[%emt 0:00:20]} 35. Rec1 {[%emt 0:00:24]} Qd4 {[%emt 0:00:31]} 36. Rd1 {[%emt 0:00:24]} Qc4 {[%emt 0:00:02]} 37. Rdc1 {[%emt 0:00:22]} Qd4 {[%emt 0:00:05]} 38. Qf3 {[%emt 0:00:29]} Qe5 {[%emt 0:01:22]} 39. Re1 {[%emt 0:00:21]} Qf6 {[%emt 0:00:20]} 40. h5 {[%emt 0:00:32]} g5 {[%emt 0:00:11]} 41. Qd5 {[%emt 0:30:48]} Be7 {[%emt 0:07:08]} 42. Qd7 {[%emt 0:00:00]} Bc5 {[%emt 0:04:40]} 43. Rbd1 {[%emt 0:00:00]} g4 {[%emt 0:06:21]} 44. Rd5 {[%emt 0:00:00]} g3 {[%emt 0:03:40]} 45. Rxc5 {[%emt 0:00:00]} gxf2+ {[%emt 0:00:14]} 46. Kxf2 {[%emt 0:00:00]} Qh4+ {[%emt 0:00:13]} 47. g3 {[%emt 0:00:00]} Qh2+ {[%emt 0:01:23]} 48. Kf3 {[%emt 0:00:00]} Rf6 {[%emt 0:03:26]} 49. Rc7 {[%emt 0:00:00]} 1-0

[Event "AUT-ch Open 2020"]
[Site "Graz"]
[Date "2020.02.19"]
[Round "7.22"]
[White "Prato, Simon"]
[Black "Ragger, Anna-Christina"]
[Result "0-1"]
[ECO "C77"]
[WhiteElo "2040"]
[BlackElo "2205"]
[Annotator "NA"]
[PlyCount "44"]
[EventDate "2020.02.14"]
[EventType "swiss"]
[EventCountry "AUT"]
[SourceTitle "playchess.com"]
[Source "ChessBase"]
[SourceQuality "1"]
[TimeControl "40/5400+30:1800+30"]

1. e4 {[%emt 0:00:00]} e5 {[%emt 0:00:00]} 2. Nf3 {[%emt 0:00:00]} Nc6 {[%emt 0:00:00]} 3. Bb5 {[%emt 0:00:35]} a6 {[%emt 0:00:00]} 4. Ba4 {[%emt 0:00:05]} Nf6 {[%emt 0:00:00]} 5. d3 {[%emt 0:00:05]} d6 {[%emt 0:00:16]} 6. c3 {[%emt 0:00:05]} g6 {[%emt 0:00:51]} 7. O-O {[%emt 0:01:25]} Bg7 {[%emt 0:02:08]} 8. Nbd2 {[%emt 0:01:45]} O-O {[%emt 0:00:19]} 9. Re1 {[%emt 0:03:17]} b5 {[%emt 0:01:24]} 10. Bc2 {[%emt 0:00:09]} Nh5 {[%emt 0:09:56]} 11. a4 {[%emt 0:08:29]} b4 {[%emt 0:05:35]} 12. Nf1 {[%emt 0:03:58]} Rb8 {[%emt 0:02:16]} 13. Ne3 {[%emt 0:15:53]} Nf4 {[%emt 0:02:23]} 14. Rb1 {[%emt 0:09:49]} d5 {[%emt 0:09:15]} 15. Bb3 {[%emt 0:13:00]} dxe4 {[%emt 0:08:17]} 16. dxe4 {[%emt 0:00:13]} Qxd1 {[%emt 0:01:12]} 17. Rxd1 {[%emt 0:09:34]} bxc3 {[%emt 0:01:20]} 18. Bc4 {[%emt 0:00:21]} Nd4 {[%emt 0:02:40]} 19. Nxd4 {[%emt 0:03:54]} exd4 {[%emt 0:00:18]} 20. Nc2 {[%emt 0:27:23]} Be6 {[%emt 0:12:40]} 21. Bxe6 {[%emt 0:00:00]} Nxe6 {[%emt 0:01:30]} 22. b3 {[%emt 0:00:00]} Rfd8 {[%emt 0:01:47]} 0-1

[Event "AUT-ch Open 2020"]
[Site "Graz"]
[Date "2020.02.19"]
[Round "7.23"]
[White "Stanec, Nikolaus"]
[Black "Manush Shah"]
[Result "1/2-1/2"]
[ECO "B24"]
[WhiteElo "2520"]
[BlackElo "2322"]
[Annotator "ChessBase"]
[PlyCount "68"]
[EventDate "2020.02.14"]
[EventType "swiss"]
[EventCountry "AUT"]
[SourceTitle "playchess.com"]
[Source "ChessBase"]
[SourceQuality "1"]
[TimeControl "40/5400+30:1800+30"]

1. e4 {[%emt 0:02:22]} c5 {[%emt 0:00:34]} 2. Nc3 {[%emt 0:00:11]} Nc6 {[%emt 0:00:26]} 3. g3 {[%emt 0:00:07]} g6 {[%emt 0:00:18]} 4. Bg2 {[%emt 0:00:06]} Bg7 {[%emt 0:00:06]} 5. d3 {[%emt 0:00:08]} e6 {[%emt 0:02:40]} 6. Be3 {[%emt 0:00:25]} d6 {[%emt 0:02:17]} 7. Qd2 {[%emt 0:00:17]} Qa5 {[%emt 0:01:46]} 8. Nf3 {[%emt 0:02:39]} Nd4 {[%emt 0:00:35]} 9. O-O {[%emt 0:00:57]} Ne7 {[%emt 0:00:33]} 10. a3 {[%emt 0:06:12]} Nec6 {[%emt 0:03:39]} 11. Rac1 {[%emt 0:07:27]} O-O {[%emt 0:02:08]} 12. h3 {[%emt 0:04:40]} Nxf3+ {[%emt 0:09:28]} 13. Bxf3 {[%emt 0:00:08]} Rb8 {[%emt 0:00:29]} 14. Bg2 {[%emt 0:03:35]} b5 {[%emt 0:02:56]} 15. Bh6 {[%emt 0:02:06]} b4 {[%emt 0:11:47]} 16. Bxg7 {[%emt 0:00:48]} Kxg7 {[%emt 0:00:03]} 17. axb4 {[%emt 0:01:03]} Qxb4 {[%emt 0:00:34]} 18. Ra1 {[%emt 0:02:35]} Bd7 {[%emt 0:05:05]} 19. Rfb1 {[%emt 0:04:17]} Rfc8 {[%emt 0:04:12]} 20. Qd1 {[%emt 0:02:01]} Rc7 {[%emt 0:02:24]} 21. Na2 {[%emt 0:06:58]} Qb6 {[%emt 0:02:07]} 22. c3 {[%emt 0:00:19]} Qb3 {[%emt 0:02:18]} 23. Qd2 {[%emt 0:01:07]} e5 {[%emt 0:05:52]} 24. Nc1 Qb6 {[%emt 0:02:26]} 25. h4 {[%emt 0:02:55]} h5 {[%emt 0:02:06]} 26. Bf3 {[%emt 0:00:40]} Rcb7 {[%emt 0:01:23]} 27. Bd1 {[%emt 0:02:14]} Qd8 {[%emt 0:02:49]} 28. Bf3 {[%emt 0:05:13]} Qf6 {[%emt 0:00:35]} 29. Bg2 {[%emt 0:00:15]} Rb6 {[%emt 0:01:58]} 30. Ne2 {[%emt 0:03:37]} Bg4 {[%emt 0:02:25]} 31. Ra2 {[%emt 0:02:29]} Qe6 {[%emt 0:05:10]} 32. Raa1 {[%emt 0:00:29]} Qf6 {[%emt 0:00:11]} 33. Ra2 {[%emt 0:00:15]} Qe6 {[%emt 0:00:39]} 34. Raa1 {[%emt 0:00:07]} Qf6 1/2-1/2